Cogmind - Beta 16 @@@ ROGUE MODE // 2025.11.01 @ 18:07:27 Player: Humbble Result: Destroyed by P-70 Sage with Tesla Rifle Performance ------------- Evolutions (5) 2500 Regions Visited (6) 1200 Robots Destroyed (29) 145 Value Destroyed (1349) 1349 Prototype IDs (6) 120 Alien Tech Used (0) 0 Bonus (300) 300 TOTAL SCORE: 5614 Bonus ------- Registered with UFD 300 Cogmind --------- Core Integrity 0/1000 Matter 24/300 Energy 6/100 System Corruption 20% Temperature Cool (0) Movement Hovering (51) Location -5/Factory Parts ------- > --- POWER (1) -------- (None) > --- PROPULSION (5) --- Gyrokinetic Inverter Linear Gravjet > --- UTILITY (8) ------ (None) > --- WEAPON (3) ------- (None) > --- INVENTORY (5) ---- Micro Fission Core Field Propulsion Drive Wave Gun Greatsword Peak State ------------ > --- POWER ------------ Neutrino Core > --- PROPULSION ------- Light Treads Improved Treads Improved Treads Heavy Treads > --- UTILITY ---------- Advanced Heat Sink Large Storage Unit Machine Analyzer Improved Terrain Scanner Surveybot 17 Chip Seismic Detector Improved Target Analyzer Improved Medium Armor Plating > --- WEAPON ----------- Wave Gun Mass Driver Enhanced Gauss Cannon > --- INVENTORY -------- Neutrino Core Micro Fission Core Micro Fission Core Improved Cooling System Medium Matter Pod Improved Weapon Cycler Improved Transmission Jammer Tesla Rifle Proton Cannon Heavy Phase Cannon Assault Rifle Subdweller Machine Gun Grenade Launcher [Rating: 75] Favorites ----------- Power Ion Engine Engine Ion Engine Power Core Neutrino Core Propulsion Light Treads Treads Light Treads Leg Aluminum Leg Hover Unit Antigrav System Flight Unit Field Propulsion Drive Utility Seismic Detector Device Seismic Detector Storage Large Storage Unit Processor Surveybot 17 Chip Protection Improved Medium Armor Plating Weapon Assault Rifle Energy Gun Wave Gun Energy Cannon Heavy Phase Cannon Ballistic Gun Assault Rifle Ballistic Cannon Enhanced Gauss Cannon Launcher Grenade Launcher Build | -11 -10 -10 -7 -5 -5 -5 ------- Run | Yrd Mat Sub Scr Fac Was Fac Slots Evolved 10 | . . . . 10 . . Power . | . . . . . . . Propulsion 3 | . . . . 3 . . Utility 6 | . . . . 6 . . Weapon 1 | . . . . 1 . . Parts Attached 54 | 7 . . 3 33 2 9 Power 4 | 1 . . . 3 . . Engine 1 | 1 . . . . . . Core 3 | . . . . 3 . . Reactor . | . . . . . . . Propulsion 21 | 2 . . 2 11 1 5 Treads 9 | . . . 2 5 1 1 Leg 3 | 2 . . . . . 1 Wheel . | . . . . . . . Hover 8 | . . . . 6 . 2 Flight 1 | . . . . . . 1 Utility 19 | 2 . . 1 13 . 3 Device 8 | 1 . . . 5 . 2 Storage 3 | 1 . . 1 . . 1 Processor 5 | . . . . 5 . . Hackware . | . . . . . . . Protection 3 | . . . . 3 . . Artifact . | . . . . . . . Weapon 10 | 2 . . . 6 1 1 Energy Gun 3 | . . . . 2 . 1 Energy Cannon 1 | . . . . 1 . . Ballistic Gun 3 | 2 . . . 1 . . Ballistic Cannon 2 | . . . . 2 . . Launcher 1 | . . . . . 1 . Special Weapon . | . . . . . . . Impact Weapon . | . . . . . . . Slashing Weapon . | . . . . . . . Piercing Weapon . | . . . . . . . Special Melee Weapon . | . . . . . . . Unidentified Prototypes . | . . . . . . . Parts Lost 30 | . . . . 15 5 10 Power 3 | . . . . 1 1 1 Propulsion 12 | . . . . 7 3 2 Utility 10 | . . . . 4 1 5 Weapon 5 | . . . . 3 . 2 Highest Loss Streak 10 | . . . . 10 5 8 To Critical Strikes . | . . . . . . . Average Backups 10 | 2 4 6 11 13 9 3 Power 1 | . 1 1 1 2 2 1 Propulsion 2 | 1 2 2 3 2 . . Utility 2 | . . . 3 3 3 1 Weapon 3 | . 1 2 3 4 2 1 Tool/Special . | . . . . . . . Unused Backups 22 | . . 1 . 10 5 6 Power 4 | . . . . 2 1 1 Propulsion 7 | . . . . 6 . 1 Utility 6 | . . 1 . 1 2 2 Weapon 5 | . . . . 1 2 2 Tool/Special . | . . . . . . . Average Slot Usage (%) 87 | . 100 100 100 92 60 23 Engine 7 | . 14 14 14 1 . . Core 1 | . . . . 3 4 1 Treads 18 | . . . 23 24 . 1 Leg 4 | . 28 28 4 . . . Hover 1 | . . . . 1 11 5 Device 13 | . 14 14 14 15 3 3 Storage 9 | . 14 14 14 5 4 1 Processor 6 | . . . . 16 21 3 Protection 1 | . . . . 4 . . Energy Gun 1 | . . . . 4 . . Ballistic Gun 16 | . 28 28 28 3 7 . Ballistic Cannon 2 | . . . . 6 . . Peak Build Rating 75 | 7 7 8 10 75 63 49 Average Rating 27 | 5 7 7 8 58 47 25 On Entrance 16 | . 7 7 8 10 63 20 Avg Prop Armor Cover (%) 12 | . . . . 4 . 16 Naked Turns 39 | . . . . . . 39 Heaviest Build 69 | 15 15 15 30 69 42 28 Greatest Support 136 | 20 20 20 40 136 35 70 Greatest Overweight (x) 16 | 2 . . 1 16 6 6 Average Overweight (x) . | . . . . . . . Largest Inventory Capacity 15 | 8 8 8 15 15 15 5 Average Capacity 12 | 7 8 8 13 15 13 5 Most Carried 15 | 4 5 8 15 15 12 5 Average Carried 10 | 2 4 7 11 13 9 4 Final Capacity 15 | 8 8 8 15 15 5 5 Final Carried 15 | 4 5 8 15 10 5 5 Class Distribution -------------------- 65% | Mutant 21% | Scavenger-Gunner 8% | Scavenger-Skirmisher 3% | Gunner Dominant Class ---------------- Mutant | -10/Materials Mutant | -10/Subcaves Mutant | -7/Scraptown Scavenger-Gunner | -5/Factory Mutant | -5/Waste Mutant | -5/Factory Resources | -11 -10 -10 -7 -5 -5 -5 ----------- Run | Yrd Mat Sub Scr Fac Was Fac Matter Collected 1160 | 291 . . 30 839 . . Remotely . | . . . . . . . Salvage Created 1351 | 93 . . . 1162 . 96 Parts 66 | 13 . . . 52 . 1 Haulers Intercepted . | . . . . . . . Recyclers Shooed 1 | . . . . 1 . . Parts Field Recycled . | . . . . . . . Retrieved Matter . | . . . . . . . Parts Self-Destructed 6 | . . 6 . . . . Prevented . | . . . . . . . Parts Restored . | . . . . . . . Kills | -11 -10 -10 -7 -5 -5 -5 ------- Run | Yrd Mat Sub Scr Fac Was Fac Combat Hostiles Destroyed 19 | . . . . 15 . 4 Guns 10 | . . . . 9 . 1 Cannons 6 | . . . . 6 . . AOE 3 | . . . . . . 3 Classes Destroyed 8 | 1 . . . 7 . . Worker 1 | . . . . 1 . . Builder 1 | . . . . 1 . . Tunneler 5 | 4 . . . 1 . . Recycler 2 | . . . . 2 . . Mechanic 1 | . . . . 1 . . Grunt 7 | . . . . 3 . 4 Sentry 5 | . . . . 5 . . Programmer 7 | . . . . 7 . . Best Kill Streak 4 | 4 . . . 3 . 4 Combat Bots Only 4 | . . . . 2 . 4 Max Kills in Single Turn 2 | 2 . . . 2 . 2 Gunslinging . | . . . . . . . Exploded 2 | . . . . . . 2 Melee . | . . . . . . . Uniques/NPCs Destroyed . | . . . . . . . Combat | -11 -10 -10 -7 -5 -5 -5 -------- Run | Yrd Mat Sub Scr Fac Was Fac Hostile Shots Fired 282 | . . . . 183 3 96 Missed 94 | . . . . 58 . 36 Hits 188 | . . . . 125 3 60 Melee 3 | . . . . . 3 . Projectile 185 | . . . . 125 . 60 AOE 5 | . . . . 5 . . Critical Strikes 10 | . . . . 7 1 2 Part Disruptions 2 | . . . . 2 . . Damage Taken 4094 | . . . . 2768 131 1195 Core 1008 | . . . . 367 43 598 Absorbed by Shields 11 | . . . . . . 11 Core Remaining (%) 100 | 100 . . 100 . . . Volleys Fired 79 | 4 . . . 67 . 8 Largest 3 | 2 . . . 3 . 1 Hottest 175 | 40 . . . 175 . 75 Shots Fired 193 | 7 . . . 178 . 8 Gun 120 | 7 . . . 111 . 2 Cannon 67 | . . . . 67 . . Launcher 6 | . . . . . . 6 Special . | . . . . . . . Kinetic 120 | 7 . . . 113 . . Thermal 67 | . . . . 65 . 2 Explosive 6 | . . . . . . 6 Electromagnetic . | . . . . . . . Robot Hit Streak 18 | 3 . . . 18 . 4 Robot Miss Streak 4 | 1 . . . 4 . 2 Penetration Max . | . . . . . . . Secondary Targets . | . . . . . . . Shots Hit Robots 123 | 4 . . . 114 . 5 Core Hits 68 | 5 . . . 48 . 15 Critical Kills 1 | 1 . . . . . . Critical Parts Destroyed . | . . . . . . . Critical Strikes 13 | 1 . . . 12 . . Burn 7 | . . . . 7 . . Destroy 1 | 1 . . . . . . Blast 5 | . . . . 5 . . Melee Attacks . | . . . . . . . Impact . | . . . . . . . Slashing . | . . . . . . . Piercing . | . . . . . . . Sneak Attacks . | . . . . . . . Combat Hostiles . | . . . . . . . Follow-up Attacks . | . . . . . . . Damage Inflicted 3747 | 58 2 . . 2836 . 851 Guns 1563 | 58 . . . 1485 . 20 Cannons 1211 | . . . . 1211 . . Explosions 874 | . . . . 93 . 781 Melee . | . . . . . . . Ramming 99 | . 2 . . 47 . 50 Kinetic 1807 | 58 . . . 1749 . . Thermal 967 | . . . . 947 . 20 Explosive 781 | . . . . . . 781 Electromagnetic 93 | . . . . 93 . . Impact . | . . . . . . . Slashing . | . . . . . . . Piercing . | . . . . . . . Highest Corruption 20 | . . . . 4 4 20 Average Corruption 4 | . . . . 1 4 11 Corruption Purged . | . . . . . . . Corruption Blocked . | . . . . . . . Effects 30 | . . . . 6 1 23 Message Errors 10 | . . . . 1 . 9 Matter Fused 8 | . . . . 1 1 6 Heat Flow Errors 2 | . . . . . . 2 Energy Discharges 6 | . . . . 3 . 3 Data Loss (minor) 2 | . . . . 1 . 1 Alerts 1 | . . . . . . 1 Misdirections 1 | . . . . . . 1 Overload Shots . | . . . . . . . Overflow Damage 87 | . . . . 50 . 37 Projectiles 50 | . . . . 50 . . Explosions 37 | . . . . . . 37 Melee . | . . . . . . . Knockbacks 9 | . . . . 9 . . Impact . | . . . . . . . Kinetic 9 | . . . . 9 . . Secondary . | . . . . . . . Self-Inflicted Damage 143 | . . . . 100 . 43 Shots 5 | . . . . 4 . 1 Rammed 11 | . . . . 2 . 9 Targets Rammed 12 | . 1 . . 2 . 9 Kicked 1 | . 1 . . . . . Crushed . | . . . . . . . Highest Temperature 140 | . . . . 140 . 112 Average Temperature 39 | . . . . 39 . 36 Received Heat Transfer 936 | . . . . 492 . 444 Siege Activations . | . . . . . . . Martial Activations . | . . . . . . . Shielding Activations . | . . . . . . . Robots Disrupted . | . . . . . . . Combat Hostiles . | . . . . . . . Robots Corrupted . | . . . . . . . Combat Hostiles . | . . . . . . . Parts Fried . | . . . . . . . Impact Corruptions . | . . . . . . . Robots Melted . | . . . . . . . Combat Hostiles . | . . . . . . . Parts Melted 1 | . . . . 1 . . Heat Transferred 2109 | . . . . 2072 . 37 Parts Sabotaged . | . . . . . . . Parts Stolen . | . . . . . . . Parts Stripped . | . . . . . . . Power Chain Reactions . | . . . . . . . Alert | -11 -10 -10 -7 -5 -5 -5 ------- Run | Yrd Mat Sub Scr Fac Was Fac Maximum Alert Level 1 | . . . . 1 . . Low Security (%) 92 | 100 100 . . 88 100 100 Level 1 7 | . . . . 11 . . Level 2 . | . . . . . . . Level 3 . | . . . . . . . Level 4 . | . . . . . . . Level 5 . | . . . . . . . High Security . | . . . . . . . Max Security . | . . . . . . . Peak Influence 215 | 15 . . . 215 64 176 Initial 64 | . . . . . 64 . Average 66 | 2 . . . 77 37 63 Influence Increases 1055 | 20 . . . 679 . 356 Destroy 0b10 Robot/C 380 | . . . . 300 . 80 Destroy 0b10 Robot/NC 50 | 20 . . . 30 . . Destroy Leader 90 | . . . . 80 . 10 Disable Machine 150 | . . . . 120 . 30 Destroy Structure 160 | . . . . 74 . 86 Lose Combat Pursuer 225 | . . . . 75 . 150 Influence Decreases 993 | 20 . . . 495 184 294 Entered New Map 120 | . . . . . 120 . Time Decay 583 | 20 . . . 345 24 194 Lost Part 290 | . . . . 150 40 100 Squads Dispatched 9 | . . . . 3 . 6 Investigation 4 | . . . . . . 4 Extermination 3 | . . . . 2 . 1 Reinforcement 2 | . . . . 1 . 1 Assault . | . . . . . . . Garrison . | . . . . . . . Intercept . | . . . . . . . Searches Triggered . | . . . . . . . Construction Impeded 1 | . . . . 1 . . Haulers Reinforced . | . . . . . . . Active Scanning Responses . | . . . . . . . Cargo Convoy Interrupts . | . . . . . . . Stealth | -11 -10 -10 -7 -5 -5 -5 --------- Run | Yrd Mat Sub Scr Fac Was Fac Distress Signals 4 | . . . . 4 . . Communications Jammed . | . . . . . . . Distress Signals . | . . . . . . . Times Spotted 59 | . . 3 . 27 6 23 Peak Tracking Total 7 | . . 2 . 5 6 7 Tactical Retreats 8 | . . . . 3 1 4 Traps | -11 -10 -10 -7 -5 -5 -5 ------- Run | Yrd Mat Sub Scr Fac Was Fac Traps Triggered 4 | . . . . 3 . 1 Indirectly . | . . . . . . . Trap Hack Attempts . | . . . . . . . Triggered . | . . . . . . . Disarmed . | . . . . . . . Reprogrammed . | . . . . . . . Reused . | . . . . . . . Traps Extracted . | . . . . . . . Installed . | . . . . . . . Triggered . | . . . . . . . Machines | -11 -10 -10 -7 -5 -5 -5 ---------- Run | Yrd Mat Sub Scr Fac Was Fac Machines Disabled 10 | . . . . 8 . 2 Max in Single Turn 4 | . . . . 4 . 2 Machines Repaired . | . . . . . . . Machines Dismantled . | . . . . . . . Machines Sabotaged . | . . . . . . . Overloaded Fab Kills . | . . . . . . . Hacking | -11 -10 -10 -7 -5 -5 -5 --------- Run | Yrd Mat Sub Scr Fac Was Fac Machines Accessed 8 | . . . 3 1 . 4 Terminals 1 | . . . . 1 . . Fabricators . | . . . . . . . Repair Stations 2 | . . . . . . 2 Recycling Units 2 | . . . . . . 2 Scanalyzers . | . . . . . . . Garrison Access . | . . . . . . . Total Hacks 21 | . . . 9 2 . 10 Successful 10 | . . . 9 . . 1 Failed 11 | . . . . 2 . 9 Catastrophic 3 | . . . . 1 . 2 Database Lockouts . | . . . . . . . Manual . | . . . . . . . Terminals 2 | . . . . 2 . . Fabricators . | . . . . . . . Repair Stations 4 | . . . . . . 4 Recycling Units 6 | . . . . . . 6 Scanalyzers . | . . . . . . . Garrison Access . | . . . . . . . Terminal Hacks 9 | . . . 9 . . . Record 9 | . . . 9 . . . Fabricator Hacks . | . . . . . . . Repair Station Hacks . | . . . . . . . Recycling Unit Hacks 1 | . . . . . . 1 Retrieve Matter 1 | . . . . . . 1 Scanalyzer . | . . . . . . . Garrison Access Hacks . | . . . . . . . Unauthorized Hacks . | . . . . . . . Terminals . | . . . . . . . Fabricators . | . . . . . . . Repair Stations . | . . . . . . . Recycling Units . | . . . . . . . Scanalyzers . | . . . . . . . Garrison Access . | . . . . . . . Data Cores Recovered . | . . . . . . . Used . | . . . . . . . Hacking Detections 5 | . . . . 1 . 4 Full Trace Events 4 | . . . . . . 4 Feedback Events . | . . . . . . . Feedback Blocked . | . . . . . . . Robot Schematics Acquired . | . . . . . . . Robots Built . | . . . . . . . Authchips . | . . . . . . . Time . | . . . . . . . Total Robot Build Rating . | . . . . . . . Part Schematics Acquired . | . . . . . . . Parts Built . | . . . . . . . Authchips . | . . . . . . . Time . | . . . . . . . Total Part Build Rating . | . . . . . . . Part Studies Acquired . | . . . . . . . Parts Repaired . | . . . . . . . Time . | . . . . . . . Parts Recycled . | . . . . . . . Recycled Matter . | . . . . . . . Retrieved Matter . | . . . . . . . Retrieved Components . | . . . . . . . Parts Scanalyzed . | . . . . . . . Part Schematics Acquired . | . . . . . . . Parts Damaged . | . . . . . . . Bothacking | -11 -10 -10 -7 -5 -5 -5 ------------ Run | Yrd Mat Sub Scr Fac Was Fac Used RIF Installer . | . . . . . . . Robots Hacked . | . . . . . . . Non-combat . | . . . . . . . Combat . | . . . . . . . Robot Hacks Applied . | . . . . . . . Relay Couplers Released . | . . . . . . . Fabnet Peak Effective % . | . . . . . . . Robots Rewired . | . . . . . . . Allies Hacked . | . . . . . . . Hacks Repelled . | . . . . . . . Allies | -11 -10 -10 -7 -5 -5 -5 -------- Run | Yrd Mat Sub Scr Fac Was Fac Total Allies . | . . . . . . . Largest Group . | . . . . . . . Highest-Rated Group . | . . . . . . . Highest-Rated Ally . | . . . . . . . Total Orders . | . . . . . . . Ally Attacks . | . . . . . . . Total Damage . | . . . . . . . Kills . | . . . . . . . Allies Corrupted . | . . . . . . . Allies Melted . | . . . . . . . Intel | -11 -10 -10 -7 -5 -5 -5 ------- Run | Yrd Mat Sub Scr Fac Was Fac Active Infowar (turns) 4622 | 30 83 279 2131 1621 75 403 Optics 1071 | . . . . 1071 . . Sensors 271 | . . . . . . 271 Terrain 439 | . . . . 439 . . Seismic 3986 | 30 83 279 2131 1463 . . Machine Analysis 1827 | . . . . 1620 75 132 Robot Analysis Total . | . . . . . . . Derelict Logs Recovered . | . . . . . . . Drone Launches . | . . . . . . . Drone Recoveries . | . . . . . . . Exploration | -11 -10 -10 -7 -5 -5 -5 ------------- Run | Yrd Mat Sub Scr Fac Was Fac Turns Passed 4864 | 122 83 279 2131 1621 75 553 Spaces Moved 3344 | 76 67 213 1393 848 86 661 Core 169 | 7 . . . 3 14 145 Treads 1956 | . . . 1116 727 4 109 Legs 626 | 69 67 213 277 . . . Wheels . | . . . . . . . Hover 215 | . . . . 118 68 29 Flight 378 | . . . . . . 378 Fastest Speed 45 | 50 120 120 120 48 50 45 Average Speed 129 | 127 120 120 152 151 84 64 Slowest Speed 850 | 190 120 120 190 850 350 350 Overloaded Moves . | . . . . . . . Propulsion Burnouts . | . . . . . . . Robots Hopped 5 | . . . . . . 5 Potential Cave-ins . | . . . . . . . Cave-ins Triggered . | . . . . . . . Exploration Rate (%) 33 | 5 6 21 80 20 80 21 Regions Visited 6 Branch Regions 2 Pre-discovered Areas . | . . . . . . . Known Exits Taken . | . . . . . . . Unknown Exits Taken 4 | 1 1 1 1 . . . Scrap Searched 3 | . . . 3 . . . Spaces Dug 6 | . . . . 6 . . Terrain Destroyed 81 | . . . . 33 . 48 Melee . | . . . . . . . Projectile 33 | . . . . 33 . . AOE 48 | . . . . . . 48 Terrain Rammed 3 | . . . . . . 3 Walls Destroyed . | . . . . . . . Machines Disabled . | . . . . . . . Actions | -11 -10 -10 -7 -5 -5 -5 --------- Run | Yrd Mat Sub Scr Fac Was Fac Total 3720 | 90 69 239 1405 1053 91 773 Wait 136 | . 1 20 . 46 . 69 Move 3329 | 75 66 212 1392 848 85 651 Hop 5 | . . . . . . 5 Pick Up 42 | 4 1 5 8 19 2 3 Fast Attach 35 | 7 . . . 20 . 8 Attach 20 | . . . . 16 3 1 Detach 4 | . . . . 3 1 . Swap 10 | . . . 3 7 . . Drop 32 | . . 2 2 25 . 3 Fire 79 | 4 . . . 67 . 8 Melee . | . . . . . . . Ram 12 | . . . . . . 12 Kick 1 | . 1 . . . . . Crush 2 | . . . . 2 . . Escape Stasis 13 | . . . . . . 13 Rewire . | . . . . . . . Trap . | . . . . . . . Miscellaneous . | . . . . . . . Route ------- -11/Scrapyard -10/Materials -10/Subcaves -7/Scraptown (discovered 2 exits: *Fac x2) -5/Factory -5/Waste -5/Factory History --------- Turn | Location | Event 20 | -11/Scrapyard | Discovered new exit (range 15) 123 | -11/Scrapyard | Entered Materials 124 | -10/Materials | Met a group of wandering Federalists 129 | -10/Materials | Discovered new exit (range 12) 206 | -10/Materials | Entered Subcaves 207 | -10/Subcaves | Continued accompanying wandering Federalists (6) 304 | -10/Subcaves | Build established: Mutant 476 | -10/Subcaves | Wandering Federalist uncovered a shortcut to Scraptown 485 | -10/Subcaves | Entered Scraptown 629 | -7/Scraptown | Visited UFD Registry 629 | -7/Scraptown | Registered with UFD as "Rustforce" 672 | -7/Scraptown | Visited Abandonware Association 690 | -7/Scraptown | Learned abandonware demo "REPAIR.EXE" 690 | -7/Scraptown | Learned abandonware demo "POISON.EXE" 721 | -7/Scraptown | Visited Botcube Research 751 | -7/Scraptown | Visited Research Penetration Think Tank 993 | -7/Scraptown | Visited Chapter 10 1025 | -7/Scraptown | Visited Scrap Suit Storage 1072 | -7/Scraptown | Visited Infowarlord's Domain 1103 | -7/Scraptown | Visited Modified Component R&D 1174 | -7/Scraptown | Visited Sword Containment 1214 | -7/Scraptown | Visited Curators Association 1257 | -7/Scraptown | Visited Cartography Club 1295 | -7/Scraptown | Found Surveybot 17 Chip 2192 | -7/Scraptown | Discovered new exit (range 11) 2605 | -7/Scraptown | Discovered new exit (range 5) 2616 | -7/Scraptown | Entered Factory 2616 | -5/Factory | Evolved 10 slots: Propulsion x3, Utility x6, Weapon x1 2681 | -5/Factory | Discovered new exit (range 6) 3115 | -5/Factory | Build established: Scavenger-Gunner 3945 | -5/Factory | Build established: Scavenger-Skirmisher 4001 | -5/Factory | Spotted B-75 Beast 4047 | -5/Factory | Lost 4 parts (3n1w) 4157 | -5/Factory | Lost 10 parts (1p4n3u2w) 4237 | -5/Factory | Sucked down chute 4237 | -5/Factory | Entered Waste 4260 | -5/Waste | Spotted C-40 Crusher 4260 | -5/Waste | Spotted C-40 Crusher 4264 | -5/Waste | Spotted C-40 Crusher 4268 | -5/Waste | Spotted C-40 Crusher 4274 | -5/Waste | Spotted C-40 Crusher 4278 | -5/Waste | Spotted C-40 Crusher 4284 | -5/Waste | Discovered new exit (range 14) 4284 | -5/Waste | Crushed by Compactor (1 part destroyed, 2 dropped) 4291 | -5/Waste | Crushed by Compactor (1 part destroyed, 2 dropped) 4300 | -5/Waste | Crushed by Compactor (1 part destroyed, 2 dropped) 4312 | -5/Waste | Entered Factory 4331 | -5/Factory | Lost 5 parts (1p3n1u) 4487 | -5/Factory | Core integrity fell below 50% 4508 | -5/Factory | System corruption reached 10% 4515 | -5/Factory | Core integrity fell below 20% 4541 | -5/Factory | Lost 8 parts (1p1n4u2w) 4619 | -5/Factory | Build established: Mutant 4865 | -5/Factory | Destroyed by P-70 Sage with Tesla Rifle Last Messages --------------- 04824_ Field strength at 46. 04825_ Field strength at 40. 04826_ Field Propulsion Drive destroyed. 04826_ Field strength at 23. 04827_ Field strength at 17. 04828_ Field strength at 11. 04829_ Field strength at 5. 04830_ Stasis field depleted. 04833_ System corrupted: Energy discharge (-38). 04837_ Connecting with Recycling Unit... 04837_ ALERT: Suspicious activity at Recycling Unit F007. Dispatching Investigation squad. 04850_ CSCC6IDQ027FLG NV4DQRDCR8>Q 04853_ Destabilizing: System interference. 04853_ Imp. Sensor Array temporarily disabled. 04854_ Slammed into T-07 Excavator. 04864_ Imp. Sensor Array destroyed. Map ----- +----------------------------------------------------+ | ?????????????????????????????????????????????????? | | ?????????????????????????????????????????????????? | | ?????????????????????????????????????????????????? | | ?????????????????????????????????????????????????? | | ?????????????????????????????????????????????????? | | ?????????????????????????????????????????????????? | | ?????????????????????????????????????????????????? | | ?????????????????????????????????????????????????? | | ?????????????????????????????????????????????????? | | ?????????????????????????????????????????????????? | | ?????????????????????????????????????????????????? | | ?????????????????????????????????????????????????? | | ?????????????????????????????????????????????????? | | ?????????????????????????????????????????????????? | | ?????????????????????????????????????????????????? | | ?????????????????????????????????????????????????? | | ?????????????????????????????????????????????????? | | ?????????????????????????????????????????????????? | | ?????????????????????????????????????????????????? | | ??????????????????##############?????????????????? | | ??????????????????# #?????????????????? | | ??????????????????# """""" #?????????????????? | | ??????????????????# """""" #?????????????????? | | ??????????????????# """" " #?????????????????? | | ??????????????????# """ #?????????????????? | | ??????????????????# @ #?????????????????? | | ??????????????????# #?????????????????? | | ??????????????????# #?????????????????? | | ??????????????????#"" [ #?????????????????? | | ??????????????????#"T #?????????????????? | | ??????????????????#"" pgp #?????????????????? | | ##????????????????# #?????? ??????????? | | #????????????###########g########## ????????? | | #????????????# g ????????? | | #????????????# ????????? | | #????????????# ????????? | | ############## ????????? | | # # ????????? | | # # #### ########### ????????? | | ?# # ####+#########???? ??????????? | | ?# # # #???????????????? | | ## # # ! #???????????????? | | / + # """" #???????????????? | | ## # # """" *#???????????????? | | ## # # """" #???????????????? | | ## # # """" #???????????????? | | ## # # """" "" #???????????????? | | ## # # """" "" #???????????????? | | ## # / Y" #???????????????? | | ############+## # ! "" #????###########? | +----------------------------------------------------+ Best States ------------- Heat Dissipation 78 Energy Generation 19 Energy Capacity 515 Matter Stores 300 Matter Capacity 300 Sight Range 21 Robot Scan Range 15 Terrain Scan Range 16 Terrain Scan Density 1210 Armor Coverage 225 Evasion (%) 61 Target Analysis 9 Core Analysis 6 Recoil Reduction 5 Kinecelleration 40 Item Schematics ----------------- None Robot Schematics ------------------ None Fabricated ------------ Nothing Repaired ---------- Nothing Studied --------- None Alien Tech Used ----------------- None Achievements -------------- Civilization 2243 Fancy Inventory I Have A Map? Omniscient Cartographer Strength In Numbers Challenges ------------ None Game ------ Seed EnergyCoilWheel Manual? 0 Play Time 01:03:26 Cumulative 47.6 hours Start 2025.11.01 @ 16:59:09 End 2025.11.01 @ 18:07:27 Sessions 1 Manual Loads 0 Difficulty Rogue Special Mode None Game No. 43 Rogue 38 Adventurer 0 Explorer 5 Win Type - Total 0 Types 0/0/0/0/0/0/0/0/0/0 Lore% 24 Gallery% 26 Achievement% 16 Wizard Run 0 Options --------- Layout 2 ASCII 0 Keyboard 0 Movement Mouse Keybinds 0 Fullscreen 2 Font 24/Smallcaps Map View 50x44 Zoom Use 0% Tactical HUD 1 Map Filters NONE Filters NONE Steam 1 RUN: 74c44dbc-7e0e-407d-8bfa-b8f6e43d44cb